Cogmind - Beta 16 @@@ ROGUE MODE // 2025.12.28 @ 21:15:25 Player: GiggleBox Result: Destroyed by B-99 Colossus with Multirail Performance ------------- Evolutions (9) 4500 Regions Visited (21) 4200 Robots Destroyed (281) 1405 Value Destroyed (13651) 13651 Prototype IDs (11) 220 Alien Tech Used (0) 0 Bonus (6384) 6384 TOTAL SCORE: 30360 Bonus ------- High Alert Combat Kills 700 Follower Combat Kills 1155 Entered Garrisons 1200 Used RIF Installer 3500 Friendly Fire -171 Cogmind --------- Core Integrity 0/1600 Matter 243/300 Energy 95/100 System Corruption 4% Temperature Cool (0) Movement Hovering (70) Location -1/Command Parts ------- > --- POWER (2) -------- (None) > --- PROPULSION (8) --- Improved Gyrokinetic Inverter > --- UTILITY (10) ----- Advanced Signal Interpreter Advanced Signal Interpreter Improved Targeting Computer > --- WEAPON (5) ------- (None) > --- INVENTORY (5) ---- Light Antimatter Reactor Light Antimatter Reactor Matter Compressor (250) ECM Suite Advanced Remote Datajack Peak State ------------ > --- POWER ------------ Micro Antimatter Reactor Light Quantum Reactor > --- PROPULSION ------- Improved Gyrokinetic Inverter Improved Gyrokinetic Inverter Combat Antigrav System Combat Antigrav System Combat Antigrav System Antigrav Array Combat Linear Gravjet > --- UTILITY ---------- Advanced Cryofiber Web Advanced Heat Sink Advanced Sensor Array Advanced Signal Interpreter Advanced Signal Interpreter Improved Targeting Computer Improved Targeting Computer Quantum Capacitor > --- WEAPON ----------- Enhanced Nova Cannon Heavy Machine Gun Heavy Machine Gun Heavy Machine Gun Heavy Machine Gun > --- INVENTORY -------- Light Antimatter Reactor Light Antimatter Reactor Matter Compressor ECM Suite Advanced Remote Datajack [Rating: 156] Favorites ----------- Power Improved Deuterium Engine Engine Improved Deuterium Engine Power Core Light Neutrino Core Reactor Quantum Reactor Propulsion Improved Treads Treads Improved Treads Leg Carbon-fiber Leg Hover Unit Combat Antigrav System Flight Unit Xenon Bombardment Thruster Utility Advanced Targeting Computer Device Seismic Detector Storage High-capacity Storage Unit Processor Advanced Targeting Computer Hackware Advanced System Shield Protection Improved Medium Armor Plating Weapon Autogun Energy Cannon Advanced Plasma Cannon Ballistic Gun Autogun Ballistic Cannon Assault Cannon Launcher Missile Launcher Special Weapon Plasma Cutter Impact Weapon Powered Hammer Special Melee Weapon Improved Datajack Build | -11 -10 -10 -9 -9 -8 -8 -7 -7 -7 -7 -6 -6 -5 -5 -4 -4 -3 -2 -2 -1 -1 ------- Run | Yrd Mat Min Mat Min Mat Gar Fac Gar Fac Gar Fac Gar Fac Ext Fac Gar Res Res Gar Acc Com Slots Evolved 18 | . . . 2 . 2 . 2 . . . 2 . 2 . 2 . 2 2 . 2 . Power 1 | . . . . . . . . . . . . . . . . . 1 . . . . Propulsion 6 | . . . 1 . 1 . . . . . . . 1 . . . 1 . . 2 . Utility 8 | . . . 1 . 1 . 1 . . . 2 . 1 . 1 . . 1 . . . Weapon 3 | . . . . . . . 1 . . . . . . . 1 . . 1 . . . Parts Attached 208 | 7 4 6 3 6 18 10 5 11 3 6 5 5 28 15 3 15 10 5 12 3 28 Power 20 | 1 . 2 . 1 1 1 . 1 1 . . 1 2 1 . 2 2 . 1 . 3 Engine 10 | 1 . 2 . 1 1 1 . 1 1 . . . 1 . . 1 . . . . . Core 3 | . . . . . . . . . . . . . 1 1 . . 1 . . . . Reactor 7 | . . . . . . . . . . . . 1 . . . 1 1 . 1 . 3 Propulsion 53 | 2 . . 1 3 8 1 1 4 . . . 1 8 6 . 3 3 1 2 1 8 Treads 37 | 2 . . 1 3 8 1 1 4 . . . 1 5 4 . 3 3 1 . . . Leg 6 | . . . . . . . . . . . . . 3 2 . . . . 1 . . Wheel . | . . . . . . . . . . . . . . . . . . . . . . Hover 9 | . . . . . . . . . . . . . . . . . . . . 1 8 Flight 1 | . . . . . . . . . . . . . . . . . . . 1 . . Utility 74 | 2 1 1 2 1 5 2 2 2 1 3 4 1 14 4 1 6 4 1 4 1 12 Device 30 | 1 . . . . 1 . 1 1 . 2 3 . 4 1 . 3 2 1 2 1 7 Storage 5 | 1 1 . 1 . . . . . . . . . 1 . . . 1 . . . . Processor 10 | . . . 1 . . 1 . . . . 1 . 3 . . . . . . . 4 Hackware 12 | . . . . . 1 . . 1 . . . . 3 2 1 . 1 . 2 . 1 Protection 17 | . . 1 . 1 3 1 1 . 1 1 . 1 3 1 . 3 . . . . . Artifact . | . . . . . . . . . . . . . . . . . . . . . . Weapon 61 | 2 3 3 . 1 4 6 2 4 1 3 1 2 4 4 2 4 1 3 5 1 5 Energy Gun . | . . . . . . . . . . . . . . . . . . . . . . Energy Cannon 4 | . . . . . . . . . . . . . . 1 . . . . 1 1 1 Ballistic Gun 36 | 2 2 . . 1 2 3 1 4 1 1 1 1 3 2 1 4 1 . 2 . 4 Ballistic Cannon 8 | . . 1 . . . . . . . . . 1 . 1 1 . . 3 1 . . Launcher 6 | . 1 . . . 2 1 . . . 1 . . . . . . . . 1 . . Special Weapon 3 | . . . . . . 1 . . . 1 . . 1 . . . . . . . . Impact Weapon 3 | . . 2 . . . . 1 . . . . . . . . . . . . . . Slashing Weapon . | . . . . . . . . . . . . . . . . . . . . . . Piercing Weapon . | . . . . . . . . . . . . . . . . . . . . . . Special Melee Weapon 1 | . . . . . . 1 . . . . . . . . . . . . . . . Unidentified Prototypes 5 | . . . . . . . . 1 . . . . . 2 . . . 1 . 1 . Parts Lost 104 | . . 1 . 2 5 2 1 3 . 1 . 6 15 11 . 7 8 2 20 2 18 Power 12 | . . 1 . . 2 . . . . . . . 3 1 . 1 . . 3 . 1 Propulsion 32 | . . . . 1 . . 1 2 . . . 1 5 6 . 3 3 1 5 . 4 Utility 32 | . . . . . 2 1 . . . . . 2 5 1 . 2 3 1 5 1 9 Weapon 28 | . . . . 1 1 1 . 1 . 1 . 3 2 3 . 1 2 . 7 1 4 Highest Loss Streak 12 | . . 1 . 2 2 1 1 2 . 1 . 3 3 9 . 3 3 1 9 2 12 To Critical Strikes 1 | . . . . . . . . . . . . . . . . . . . . . 1 Average Backups 17 | 2 8 9 14 19 19 19 19 17 19 18 18 18 18 18 18 19 19 19 15 3 4 Power . | . 1 . 1 1 . . . . . . 1 1 1 2 2 1 1 1 . . . Propulsion 1 | 1 1 . 1 2 2 3 2 . 1 1 2 1 . . . . . . . . . Utility 7 | . 1 3 5 7 7 7 8 8 9 10 8 9 10 9 10 10 9 9 7 2 2 Weapon 5 | . 4 5 5 6 6 7 6 6 6 4 4 5 4 4 4 5 6 6 5 1 . Tool/Special . | . . . . . . . . . . . . . . . . . . . . . . Unused Backups 36 | . 3 3 . . 5 1 1 5 2 . . . 2 2 . 4 . 1 3 . 4 Power 4 | . . . . . . . . . . . . . . 1 . . . . 1 . 2 Propulsion 6 | . 1 1 . . 3 . . . . . . . . 1 . . . . . . . Utility 12 | . 1 1 . . . 1 1 . 1 . . . 1 . . 3 . . 2 . 1 Weapon 11 | . 1 1 . . 1 . . 5 . . . . 1 . . 1 . 1 . . . Tool/Special 3 | . . . . . 1 . . . 1 . . . . . . . . . . . 1 Average Slot Usage (%) 93 | . 100 99 99 100 99 100 99 96 84 84 85 85 94 96 99 98 97 81 84 26 64 Engine 5 | . 14 13 11 11 8 9 7 7 7 7 6 5 2 . . . . . . . . Reactor 1 | . . . . . . . . . . . . . 1 . . 3 6 8 6 . 4 Treads 23 | . 28 28 32 33 36 36 30 26 15 15 13 13 17 12 26 24 26 20 17 . . Leg 1 | . . . . . . . . . . . . . 6 13 . . . . . . . Device 9 | . 14 13 5 3 8 . 7 7 7 7 13 12 10 11 10 10 13 11 18 5 11 Storage 7 | . 14 14 11 11 9 9 7 7 7 7 6 6 5 5 5 5 4 4 3 . . Processor 12 | . . . 10 11 9 10 15 15 15 15 18 20 20 17 15 15 9 8 8 8 14 Hackware 2 | . . . . . . 7 . . . . . . 1 5 10 7 8 8 4 4 1 Protection 5 | . . . 5 7 9 9 7 6 7 6 6 6 5 4 5 7 3 4 3 . . Ballistic Gun 16 | . 27 23 . 12 16 15 19 22 18 21 17 18 14 10 13 19 16 9 14 . 5 Ballistic Cannon 1 | . . 2 11 4 . . . . . . . 1 1 2 . . . 3 1 . . Impact Weapon 1 | . . 1 11 4 1 1 3 . 3 . 1 . . . 4 . 1 . 1 2 . Peak Build Rating 156 | 7 10 14 19 21 30 31 36 66 68 68 78 78 83 85 92 103 116 150 150 49 156 Average Rating 57 | 5 9 11 18 19 25 27 34 40 66 66 73 75 72 78 90 95 109 129 133 37 107 On Entrance 54 | . 7 10 13 19 21 29 28 35 66 68 66 74 78 77 85 90 98 109 150 31 35 Avg Prop Armor Cover (%) 7 | . . . . . . . . . . . . . 5 6 . . . . 4 10 9 Naked Turns . | . . . . . . . . . . . . . . . . . . . . . . Heaviest Build 145 | 12 20 26 58 60 58 60 68 71 71 69 70 79 82 81 81 98 128 143 145 7 64 Greatest Support 189 | 40 40 40 60 60 92 92 89 150 150 150 150 150 170 126 126 126 160 189 189 13 112 Greatest Overweight (x) 2 | 2 . . . . . . . . . . . . 1 2 . 1 1 1 1 . . Average Overweight (x) . | . . . . . . . . . . . . . . . . . . . . . . Largest Inventory Capacity 20 | 8 10 10 20 20 20 20 20 20 20 20 20 20 20 20 20 20 20 20 20 5 5 Average Capacity 18 | 7 8 10 18 20 20 20 20 20 20 20 20 20 20 20 20 20 20 20 19 5 5 Most Carried 20 | 5 10 10 19 20 20 20 20 20 20 20 20 20 20 20 19 20 20 20 18 5 5 Average Carried 17 | 2 8 9 14 19 19 19 19 18 19 19 19 19 18 18 18 19 19 19 16 4 4 Final Capacity 20 | 8 10 10 20 20 20 20 20 20 20 20 20 20 20 20 20 20 20 20 5 5 5 Final Carried 20 | 5 10 10 19 20 20 20 19 20 20 20 20 19 17 20 18 20 18 17 4 5 5 Class Distribution -------------------- 26% | Mutant 22% | Scavenger-Tank 15% | Scavenger-Mutant 13% | Scavenger-Gunner 9% | Scavenger-Skirmisher 3% | Scavenger-Assassin Dominant Class ---------------- Mutant | -10/Materials Mutant | -10/Mines Mutant | -9/Materials Mutant | -9/Mines Scavenger-Mutant | -8/Materials Scavenger-Mutant | -8/Garrison Scavenger-Gunner | -7/Factory Scavenger-Gunner | -7/Garrison Scavenger-Mutant | -7/Factory Scavenger-Tank | -7/Garrison Scavenger-Gunner | -6/Factory Bothacker-Gunner | -6/Garrison Scavenger-Skirmisher | -5/Factory Scavenger-Skirmisher | -5/Extension Scavenger-Assassin | -4/Factory Scavenger-Tank | -4/Garrison Scavenger-Tank | -3/Research Scavenger-Tank | -2/Research Scavenger-Tank | -2/Garrison Mutant | -1/Access Mutant | -1/Command Resources | -11 -10 -10 -9 -9 -8 -8 -7 -7 -7 -7 -6 -6 -5 -5 -4 -4 -3 -2 -2 -1 -1 ----------- Run | Yrd Mat Min Mat Min Mat Gar Fac Gar Fac Gar Fac Gar Fac Ext Fac Gar Res Res Gar Acc Com Matter Collected 11637 | 279 273 168 417 344 643 1218 134 957 146 681 145 628 1156 1133 . 1271 668 269 679 3 425 Remotely 1054 | . . . . . . . . . . 186 . 179 . 191 . 156 342 . . . . Salvage Created 12454 | 122 326 181 692 274 1163 702 154 1173 289 657 249 798 1265 607 . 1294 777 263 1016 . 452 Parts 635 | 10 21 13 46 13 58 40 14 48 13 44 5 35 77 22 . 52 37 23 40 . 24 Haulers Intercepted 6 | . 1 . 3 . 2 . . . . . . . . . . . . . . . . Recyclers Shooed 6 | . . 1 . . . . . . . . . . 2 1 . . . 2 . . . Parts Field Recycled . | . . . . . . . . . . . . . . . . . . . . . . Retrieved Matter . | . . . . . . . . . . . . . . . . . . . . . . Parts Self-Destructed . | . . . . . . . . . . . . . . . . . . . . . . Prevented . | . . . . . . . . . . . . . . . . . . . . . . Parts Restored . | . . . . . . . . . . . . . . . . . . . . . . Kills | -11 -10 -10 -9 -9 -8 -8 -7 -7 -7 -7 -6 -6 -5 -5 -4 -4 -3 -2 -2 -1 -1 ------- Run | Yrd Mat Min Mat Min Mat Gar Fac Gar Fac Gar Fac Gar Fac Ext Fac Gar Res Res Gar Acc Com Combat Hostiles Destroyed 232 | . 8 3 14 11 24 20 6 13 4 19 1 18 19 8 . 21 10 4 21 . 8 Melee 3 | . . . . 1 1 1 . . . . . . . . . . . . . . . Guns 153 | . 5 3 . 8 15 13 6 13 4 14 1 16 18 1 . 19 10 1 5 . 1 Cannons 36 | . . . 10 2 . . . . . . . 2 . 6 . 2 . 3 5 . 6 AOE 34 | . 3 . 4 . 7 6 . . . 5 . . 1 1 . . . . 7 . . Classes Destroyed 21 | 2 4 1 2 2 1 4 . 1 . . . 1 . . . 3 . . . . . Worker 17 | . . 3 3 2 3 . 1 . . . . . 3 . . . 1 . . . 1 Builder 10 | . . . . 1 1 . . . . . . . 5 1 . . . 2 . . . Tunneler 7 | 3 1 1 . . . . . . . . . . . 1 . . 1 . . . . Hauler 6 | . 1 . 3 . 2 . . . . . . . . . . . . . . . . Recycler 8 | 1 . . 1 2 . . . . . . 1 . 1 2 . . . . . . . Operator 4 | . . . 2 . 1 . . . . . . . . . . . 1 . . . . Drone 2 | . . . . . . . . . . . . . . . . 1 . . 1 . . Watcher 10 | . 1 . 2 . 3 . . . 2 . 1 . . . . . . . . . 1 Swarmer 61 | . 3 3 6 . 4 4 6 . . 7 . 7 4 2 . . 1 . 9 . 5 Cutter 4 | . . . . . . . . . . . . . . . . 4 . . . . . Saboteur 3 | . . . . . . 3 . . . . . . . . . . . . . . . Grunt 53 | . 5 . 5 . 10 . . 11 . 6 . 7 2 . . 2 1 . 4 . . Brawler 4 | . . . . . . 1 . . . . . . 1 . . 1 1 . . . . Duelist 4 | . . . . . . . . . . . . . . . . 3 1 . . . . Sentry 33 | . . . 3 . 8 3 . . 2 3 1 1 3 1 . 4 1 . 2 . 1 Demolisher 2 | . . . . . . . . 1 . . . . . . . 1 . . . . . Specialist 3 | . . . . . . 2 . . . . . . . . . 1 . . . . . Hunter 13 | . . . . . 2 1 . . . . . 2 . 1 . 3 . . 4 . . Programmer 36 | . . . . . . 6 . 1 2 3 . . 9 3 . . 5 4 1 . 2 Behemoth 3 | . . . . . . . . . . . . 1 . 1 . 1 . . . . . Assembled 11 | . . . . 11 . . . . . . . . . . . . . . . . . Best Kill Streak 10 | 2 4 6 8 3 6 10 4 4 1 9 2 4 5 4 . 5 3 4 8 . 5 Combat Bots Only 10 | . 3 3 7 3 4 10 4 4 1 9 1 4 4 3 . 5 3 2 8 . 5 Max Kills in Single Turn 6 | 1 2 2 4 1 6 4 1 1 1 3 1 2 2 1 . 2 2 2 3 . 1 Gunslinging 1 | . . . . . . . . . . 1 . 1 . . . 1 1 . . . . Exploded 4 | . 2 . 4 . 4 4 . . . 3 . . 1 1 . . . . 3 . . Melee 1 | . . . . 1 1 1 . . . . . . . . . . . . . . . Uniques/NPCs Destroyed . | . . . . . . . . . . . . . . . . . . . . . . Combat | -11 -10 -10 -9 -9 -8 -8 -7 -7 -7 -7 -6 -6 -5 -5 -4 -4 -3 -2 -2 -1 -1 -------- Run | Yrd Mat Min Mat Min Mat Gar Fac Gar Fac Gar Fac Gar Fac Ext Fac Gar Res Res Gar Acc Com Hostile Shots Fired 1775 | . 37 15 28 33 99 94 36 27 64 118 18 175 144 96 . 132 121 31 253 44 210 Missed 502 | . 9 3 7 7 21 27 14 6 30 33 5 50 31 24 . 29 36 9 71 17 73 Hits 1273 | . 28 12 21 26 78 67 22 21 34 85 13 125 113 72 . 103 85 22 182 27 137 Melee 46 | . . . . 2 . . . . . . . . 3 . . 13 11 . . . 17 Projectile 1227 | . 28 12 21 24 78 67 22 21 34 85 13 125 110 72 . 90 74 22 182 27 120 AOE 10 | . . . . . . . . 6 . . . . . . . 1 . . . . 3 Critical Strikes 49 | . . 1 1 . 2 2 . . . 2 . 2 1 3 . 6 5 1 6 . 17 Part Disruptions 2 | . . . . . . 1 . . . . . . . . . . . . 1 . . Damage Taken 22042 | . 296 154 314 375 1304 847 266 592 354 1019 103 1405 2379 1647 . 1840 1411 273 3511 435 3517 Core 3450 | . 70 13 37 11 153 101 . 14 64 109 24 119 282 221 . 75 58 22 476 212 1389 Absorbed by Shields 2762 | . . . . . . 68 . . . . . 909 11 . . 380 393 239 594 . 168 Reduced by Siege Mode 136 | . . . . . . . . . . . . 75 61 . . . . . . . . Regen/Repaired (Parts) 17 | . . . . . . . . . . . 17 . . . . . . . . . . Core Remaining (%) 76 | 100 . 66 . 88 . 53 . . . 73 . 83 . 49 . 93 95 . 65 . . Volleys Fired 699 | 3 29 9 32 35 62 60 10 61 19 39 6 45 71 52 1 63 27 8 44 4 19 Largest 5 | 2 2 2 1 2 2 2 3 3 3 3 3 3 3 3 1 4 4 4 5 1 4 Hottest 184 | 40 46 46 37 48 53 53 74 74 93 93 93 102 102 178 98 184 139 174 174 120 120 Shots Fired 1677 | 6 55 18 32 52 118 113 30 173 53 88 18 135 178 109 1 226 88 27 121 4 32 Gun 1425 | 6 52 18 . 44 112 109 30 173 53 73 18 131 156 39 . 204 84 19 87 . 17 Cannon 185 | . . . 31 8 . . . . . . . 4 11 59 1 17 . 8 27 4 15 Launcher 26 | . 3 . 1 . 6 4 . . . 3 . . 2 2 . . . . 5 . . Special 41 | . . . . . . . . . . 12 . . 9 9 . 5 4 . 2 . . Kinetic 1555 | 6 52 18 31 52 112 109 30 173 53 73 18 135 167 74 . 217 84 27 107 . 17 Thermal 48 | . . . . . . . . . . . . . . 24 1 4 . . . 4 15 Explosive 26 | . 3 . 1 . 6 4 . . . 3 . . 2 2 . . . . 5 . . Electromagnetic 7 | . . . . . . . . . . . . . . . . . . . 7 . . Robot Hit Streak 31 | 4 9 4 4 10 27 18 13 25 31 16 4 20 26 24 . 31 24 9 12 . 7 Robot Miss Streak 5 | . 5 2 2 3 3 2 3 4 5 2 2 3 4 3 . 4 2 2 5 . 2 Penetration Max 2 | . . . . . . 1 . 1 . 1 . 1 2 1 . 1 1 1 . . . Secondary Targets 27 | . . 1 . . 2 1 1 . . 3 . 5 3 . . 6 5 . . . . Max Gunslinging Chain 2 | . . 1 . . 1 1 1 . . 1 . 1 1 . . 1 2 . . . . Capacitor 13 | . . . . . . . . . . . . . . . . . . . . . 13 Shots Hit Robots 1239 | 4 37 13 29 39 100 100 20 130 31 61 11 98 134 75 . 163 68 18 87 . 21 Core Hits 535 | 3 16 7 22 18 53 30 9 66 12 35 6 38 58 23 . 54 29 9 34 . 13 Critical Kills 14 | 1 . . 1 1 1 . . . . 1 . 1 1 . . 4 . . 2 . 1 Critical Parts Destroyed 27 | . . . 2 2 2 3 . 1 . 1 . 1 2 1 . 4 1 2 5 . . Critical Strikes 60 | 1 . . 5 3 3 3 . 1 . 3 . 3 4 4 . 15 1 2 11 . 1 Meltdown 1 | . . . . . . . . . . . . . . . . . . . . . 1 Destroy 42 | 1 . . . . 3 3 . 1 . 3 . 3 3 1 . 15 1 2 6 . . Blast 7 | . . . 2 . . . . . . . . . . 3 . . . . 2 . . Smash 10 | . . . 3 3 . . . . . . . . 1 . . . . . 3 . . Melee Attacks 131 | . . 6 10 7 9 28 9 8 16 2 . . 15 . 2 3 5 . 11 . . Impact 117 | . . 6 10 7 9 14 9 8 16 2 . . 15 . 2 3 5 . 11 . . Slashing . | . . . . . . . . . . . . . . . . . . . . . . Piercing . | . . . . . . . . . . . . . . . . . . . . . . Sneak Attacks 32 | . . . 6 5 3 14 1 . . . . . 1 . . . 2 . . . . Combat Hostiles . | . . . . . . . . . . . . . . . . . . . . . . Follow-up Attacks . | . . . . . . . . . . . . . . . . . . . . . . Damage Inflicted 33262 | 51 742 423 1522 1117 3064 1756 375 2272 763 1608 289 2098 3650 2136 . 3983 1959 865 3759 . 830 Guns 21669 | 49 546 169 . 476 1455 1489 314 2272 712 1127 250 2036 3190 475 . 3619 1771 276 1171 . 272 Cannons 4998 | . . . 628 155 . . . . . . . 62 220 1482 . 303 . 570 1075 . 503 Explosions 3734 | . 196 . 280 . 1121 211 . . . 481 . . 122 163 . . . . 1160 . . Melee 2646 | . . 222 614 486 477 56 50 . 51 . . . 88 . . 61 188 . 353 . . Ramming 215 | 2 . 32 . . 11 . 11 . . . 39 . 30 16 . . . 19 . . 55 Kinetic 25296 | 49 546 169 628 631 1455 1489 314 2272 712 1127 250 2098 3410 1311 . 3793 1771 846 2153 . 272 Thermal 1278 | . . . . . . . . . . . . . . 646 . 129 . . . . 503 Explosive 3734 | . 196 . 280 . 1121 211 . . . 481 . . 122 163 . . . . 1160 . . Electromagnetic 93 | . . . . . . . . . . . . . . . . . . . 93 . . Impact 2646 | . . 222 614 486 477 56 50 . 51 . . . 88 . . 61 188 . 353 . . Slashing . | . . . . . . . . . . . . . . . . . . . . . . Piercing . | . . . . . . . . . . . . . . . . . . . . . . Highest Corruption 23 | . . . . . . 8 . 1 2 4 . . 21 23 . . 10 6 7 . 4 Average Corruption 6 | . . . . . . 7 . 1 1 2 . . 5 21 . . 9 3 6 . 2 Corruption Purged 4 | . . . . . . . . . . 4 . . . . . . . . . . . Corruption Blocked . | . . . . . . . . . . . . . . . . . . . . . . Effects 201 | . . . . . . 32 . 8 8 9 . . 25 62 . . 29 3 23 . 2 Message Errors 37 | . . . . . . 6 . 2 1 1 . . 2 12 . . 6 1 5 . 1 Matter Fused 47 | . . . . . . 8 . 3 2 3 . . 3 20 . . 3 . 5 . . Heat Flow Errors 31 | . . . . . . 3 . 1 2 . . . 7 8 . . 6 . 4 . . Energy Discharges 25 | . . . . . . 3 . 1 2 2 . . 5 3 . . 5 1 3 . . Parts Rejected 2 | . . . . . . . . . . . . . 1 . . . . 1 . . . Parts Fused 5 | . . . . . . . . . . . . . 1 2 . . . . 2 . . Data Loss (minor) 27 | . . . . . . 5 . 1 . 1 . . 4 7 . . 6 . 3 . . Data Loss (major) 6 | . . . . . . . . . . 1 . . . 2 . . 2 . 1 . . Misfires 10 | . . . . . . 4 . . 1 1 . . 1 2 . . . . . . 1 Weapon Failures 11 | . . . . . . 3 . . . . . . 1 6 . . 1 . . . . Overload Shots . | . . . . . . . . . . . . . . . . . . . . . . Overflow Damage 1398 | . . 146 248 159 117 46 10 . 16 . . . 88 31 . . 81 193 241 . 22 Projectiles 249 | . . . 8 . . . . . . . . . . 29 . . . 193 12 . 7 Explosions 129 | . . . 5 . 13 . . . . . . . . 2 . . . . 109 . . Melee 1020 | . . 146 235 159 104 46 10 . 16 . . . 88 . . . 81 . 120 . 15 Knockbacks 19 | . . 1 3 1 1 . . . . . 1 . 1 3 . . 1 2 5 . . Impact 8 | . . 1 . . 1 . . . . . 1 . . . . . 1 . 4 . . Kinetic 11 | . . . 3 1 . . . . . . . . 1 3 . . . 2 1 . . Secondary . | . . . . . . . . . . . . . . . . . . . . . . Self-Inflicted Damage 140 | . 12 . 66 . . . . . . . . . . . . . . . 35 . 27 Shots 3 | . 1 . 1 . . . . . . . . . . . . . . . 1 . . Rammed 15 | 1 . 6 . . 2 . . . . . 2 . 2 . . . . 1 . . 1 Targets Rammed 24 | 2 . 9 . . 2 . 1 . . . 2 . 2 4 . . . 1 . . 1 Kicked 4 | . . . . . . . . . . . . . . 4 . . . . . . . Crushed 5 | 1 . 3 . . . . 1 . . . . . . . . . . . . . . Highest Temperature 302 | . 24 24 26 79 57 282 71 164 272 143 30 48 265 261 . 107 235 302 218 128 285 Average Temperature 48 | . 9 8 9 18 15 54 24 44 65 43 14 20 101 99 . 22 67 117 87 64 73 Received Heat Transfer 2429 | . 90 9 63 40 495 27 12 99 60 177 30 159 360 51 . 297 164 . 170 18 108 Siege Activations 6 | . . . . . . . . . . 2 . 3 1 . . . . . . . . Total Turns 111 | . . . . . . . . . . 11 . 61 39 . . . . . . . . Longest Duration 39 | . . . . . . . . . . 9 . 34 39 . . . . . . . . Martial Activations . | . . . . . . . . . . . . . . . . . . . . . . Shielding Activations . | . . . . . . . . . . . . . . . . . . . . . . Robots Disrupted . | . . . . . . . . . . . . . . . . . . . . . . Combat Hostiles . | . . . . . . . . . . . . . . . . . . . . . . Robots Corrupted 13 | . . 1 3 . 2 . . . 1 . . . . . . . 1 . 4 . 1 Combat Hostiles 5 | . . . . . 1 . . . . . . . . . . . . . 4 . . Parts Fried 27 | . . 1 6 . 3 . . . 1 . . . 2 . . 3 5 . 5 . 1 Impact Corruptions 31 | . . 3 7 5 4 1 1 . 1 . . . 2 . . . 2 . 4 . 1 Robots Melted 1 | . . . . . . . . . . . . . . . . . . . . . 1 Combat Hostiles 1 | . . . . . . . . . . . . . . . . . . . . . 1 Parts Melted 5 | . . . . . . . . . . 2 . . . . . . . . . . 3 Heat Transferred 1470 | . . . . . . . . . . . . . . 900 . 200 . . . . 370 Parts Sabotaged . | . . . . . . . . . . . . . . . . . . . . . . Parts Stolen . | . . . . . . . . . . . . . . . . . . . . . . Parts Stripped . | . . . . . . . . . . . . . . . . . . . . . . Power Chain Reactions . | . . . . . . . . . . . . . . . . . . . . . . Alert | -11 -10 -10 -9 -9 -8 -8 -7 -7 -7 -7 -6 -6 -5 -5 -4 -4 -3 -2 -2 -1 -1 ------- Run | Yrd Mat Min Mat Min Mat Gar Fac Gar Fac Gar Fac Gar Fac Ext Fac Gar Res Res Gar Acc Com Maximum Alert Level 3 | . . . 1 . 2 3 2 3 2 2 1 2 1 . . 2 1 . 1 . . Low Security (%) 52 | 100 100 100 30 100 75 . . . . 17 . 15 82 100 100 30 67 100 93 100 100 Level 1 24 | . . . 69 . 21 28 . 22 85 28 100 18 17 . . 43 32 . 6 . . Level 2 18 | . . . . . 3 49 100 35 14 53 . 65 . . . 25 . . . . . Level 3 5 | . . . . . . 22 . 41 . . . . . . . . . . . . . Level 4 . | . . . . . . . . . . . . . . . . . . . . . . Level 5 . | . . . . . . . . . . . . . . . . . . . . . . High Security . | . . . . . . . . . . . . . . . . . . . . . . Max Security . | . . . . . . . . . . . . . . . . . . . . . . Peak Influence 1057 | 10 126 73 389 121 408 1057 661 866 454 677 354 607 318 187 85 589 330 40 340 192 132 Initial 554 | . . . . 121 . 223 554 365 454 164 354 141 318 94 85 29 330 40 9 190 113 Average 251 | 2 37 11 238 19 132 519 572 625 312 447 280 408 152 55 62 270 167 14 131 179 94 Influence Increases 8370 | 20 256 189 615 81 834 1054 216 531 179 583 70 526 670 512 37 781 237 90 529 48 312 Destroy 0b10 Robot/C 4770 | . 160 120 340 40 480 600 120 260 80 400 20 360 400 300 . 445 150 60 315 . 120 Destroy 0b10 Robot/NC 356 | 20 15 35 55 25 50 . 5 30 10 . 10 . 45 20 . 4 12 8 4 . 8 Destroy Leader 814 | . 44 20 100 10 150 20 20 10 44 40 12 50 100 50 . 38 32 16 32 . 26 Allied During Kill 176 | . . 11 5 6 . 41 . . . 14 . . 2 66 . 17 11 . 3 . . Trap Triggered on 0b10 30 | . . . . . . . . 30 . . . . . . . . . . . . . Successful Hack 219 | . 23 . 14 . 25 14 2 . 17 14 26 . 16 . 18 . . . . . 50 Select Force Hacks 50 | . . . . . . . . . . . . . . 50 . . . . . . . Disable Machine 306 | . . . 45 . 75 . 15 . 15 15 . . 30 . 15 . 24 . 36 24 12 Anti-Garrison Action 777 | . . . . . . 300 . 100 . 50 . 50 . . . 239 . . 38 . . Destroy Structure 455 | . 14 3 41 . 54 34 9 26 13 20 2 6 62 26 4 26 8 6 89 . 12 Partial Spotted 36 | . . . . . . . . . . . . . . . . . . . . 12 24 Lose Combat Pursuer 381 | . . . 15 . . 45 45 75 . 30 . 60 15 . . 12 . . 12 12 60 Influence Decreases 8355 | 20 256 189 302 394 490 341 751 187 810 141 545 121 1084 530 170 234 753 151 223 188 475 Entered New Map 2819 | . . . . 192 . 121 503 157 412 71 323 61 289 99 90 13 259 33 3 128 65 Time Decay 3953 | 20 256 179 282 202 440 . 238 . 398 . 222 . 565 309 80 . 374 118 . 40 230 Lost Part 940 | . . 10 . . 50 20 10 30 . 10 . 60 150 50 . 70 80 . 200 20 180 Lost Ally 643 | . . . 20 . . 200 . . . 60 . . 80 72 . 151 40 . 20 . . Squads Dispatched 29 | . 3 . 3 . 1 . . . 2 . 3 . 6 2 . . 3 1 . 1 4 Investigation 4 | . 2 . . . . . . . . . . . . 1 . . . . . . 1 Extermination 13 | . . . . . . . . . 2 . 1 . 5 . . . 3 1 . . 1 Reinforcement 12 | . 1 . 3 . 1 . . . . . 2 . 1 1 . . . . . 1 2 Assault . | . . . . . . . . . . . . . . . . . . . . . . Garrison . | . . . . . . . . . . . . . . . . . . . . . . Intercept . | . . . . . . . . . . . . . . . . . . . . . . Searches Triggered . | . . . . . . . . . . . . . . . . . . . . . . Construction Impeded . | . . . . . . . . . . . . . . . . . . . . . . Haulers Reinforced . | . . . . . . . . . . . . . . . . . . . . . . Active Scanning Responses . | . . . . . . . . . . . . . . . . . . . . . . Cargo Convoy Interrupts . | . . . . . . . . . . . . . . . . . . . . . . Alert ID Control Effect 4 | . . . . . . . . . . . . . 1 . . . 3 . . . . Stealth | -11 -10 -10 -9 -9 -8 -8 -7 -7 -7 -7 -6 -6 -5 -5 -4 -4 -3 -2 -2 -1 -1 --------- Run | Yrd Mat Min Mat Min Mat Gar Fac Gar Fac Gar Fac Gar Fac Ext Fac Gar Res Res Gar Acc Com Distress Signals 18 | . 2 . 3 . 5 1 . . . . . . . 3 . . . . . . 4 Communications Jammed 3 | . . . . . . . . . . . 3 . . . . . . . . . . Distress Signals 3 | . . . . . . . . . . . 3 . . . . . . . . . . Times Spotted 377 | . 12 6 27 13 30 31 10 18 9 20 4 20 36 17 1 26 18 8 27 8 36 Peak Tracking Total 16 | . 3 3 6 5 6 8 4 4 1 11 1 7 5 5 1 5 4 4 7 6 16 Tactical Retreats 21 | . . . 1 2 . 1 2 3 . 1 . 4 1 . . 1 . . 1 1 3 Traps | -11 -10 -10 -9 -9 -8 -8 -7 -7 -7 -7 -6 -6 -5 -5 -4 -4 -3 -2 -2 -1 -1 ------- Run | Yrd Mat Min Mat Min Mat Gar Fac Gar Fac Gar Fac Gar Fac Ext Fac Gar Res Res Gar Acc Com Traps Triggered 45 | . 2 . . . 2 4 . 7 2 . . 2 4 1 . 5 2 . 4 . 10 Indirectly . | . . . . . . . . . . . . . . . . . . . . . . Trap Hack Attempts . | . . . . . . . . . . . . . . . . . . . . . . Triggered . | . . . . . . . . . . . . . . . . . . . . . . Disarmed . | . . . . . . . . . . . . . . . . . . . . . . Reprogrammed . | . . . . . . . . . . . . . . . . . . . . . . Reused 3 | . . . . . . . . 3 . . . . . . . . . . . . . Traps Extracted . | . . . . . . . . . . . . . . . . . . . . . . Installed 4 | . . . . . . . . 4 . . . . . . . . . . . . . Triggered 3 | . . . . . . . . 3 . . . . . . . . . . . . . Most Traps Carried 3 | . . . . . . . . 3 . . . . . . . . . . . . . Machines | -11 -10 -10 -9 -9 -8 -8 -7 -7 -7 -7 -6 -6 -5 -5 -4 -4 -3 -2 -2 -1 -1 ---------- Run | Yrd Mat Min Mat Min Mat Gar Fac Gar Fac Gar Fac Gar Fac Ext Fac Gar Res Res Gar Acc Com Machines Disabled 38 | . . . 3 . 5 7 1 . 1 2 . 1 2 2 1 4 2 . 4 2 1 Max in Single Turn 2 | . . . 2 . 2 1 1 . 1 1 . 1 1 1 1 1 1 . 2 1 1 Garrison Relay 10 | . . . . . . 3 . . . 1 . 1 . . . 4 . . 1 . . Phase Generator 1 | . . . . . . 1 . . . . . . . . . . . . . . . Energy Cycler 1 | . . . . . . . . . . . . . . 1 . . . . . . . Machines Repaired . | . . . . . . . . . . . . . . . . . . . . . . Machines Dismantled 8 | . . . . . . 4 . . . 2 . 1 . . . 1 . . . . . Machines Sabotaged 1 | . . . . . . . . . . . . . . 1 . . . . . . . Overloaded Fab Kills . | . . . . . . . . . . . . . . . . . . . . . . Hacking | -11 -10 -10 -9 -9 -8 -8 -7 -7 -7 -7 -6 -6 -5 -5 -4 -4 -3 -2 -2 -1 -1 --------- Run | Yrd Mat Min Mat Min Mat Gar Fac Gar Fac Gar Fac Gar Fac Ext Fac Gar Res Res Gar Acc Com Machines Accessed 62 | . 5 1 3 . 10 1 2 2 5 1 3 . 8 1 3 2 4 2 . 2 7 Terminals 40 | . 5 . 2 . 7 1 . 2 3 1 1 . 3 1 2 2 3 1 . 1 5 Fabricators 2 | . . . . . . . . . 1 . . . 1 . . . . . . . . Repair Stations 5 | . . . . . . . . . . . 1 . 1 . . . . . . 1 2 Recycling Units 1 | . . . . . . . . . . . . . 1 . . . . . . . . Scanalyzers 7 | . . . 1 . 2 . 1 . . . . . 2 . . . 1 . . . . Garrison Access 6 | . . . . . 1 . 1 . 1 . 1 . . . 1 . . 1 . . . Total Hacks 133 | . 13 1 10 . 25 3 4 3 11 2 4 . 15 2 9 2 9 3 . 3 14 Successful 64 | . 6 1 6 . 18 1 4 . 4 1 3 . 4 2 6 1 1 2 . . 4 Failed 67 | . 7 . 4 . 6 2 . 3 7 1 1 . 10 . 3 1 8 1 . 3 10 Catastrophic 17 | . . . 1 . 2 . . 1 2 . 1 . 2 . 2 . 2 . . 2 2 Database Lockouts 2 | . . . . . 1 . . . . . . . 1 . . . . . . . . Manual 38 | . 9 . 4 . 8 . . . 4 . 1 . 3 2 3 . 2 1 . . 1 Terminals 92 | . 13 . 5 . 19 3 . 3 8 2 1 . 6 2 8 2 6 2 . 1 11 Fabricators 4 | . . . . . . . . . 2 . . . 2 . . . . . . . . Repair Stations 8 | . . . . . . . . . . . 2 . 1 . . . . . . 2 3 Recycling Units 2 | . . . . . . . . . . . . . 2 . . . . . . . . Scanalyzers 20 | . . . 5 . 5 . 3 . . . . . 4 . . . 3 . . . . Garrison Access 6 | . . . . . 1 . 1 . 1 . 1 . . . 1 . . 1 . . . Terminal Hacks 26 | . 4 1 1 . 9 1 . . 2 1 . . 1 . 2 1 . . . . 3 Record 1 | . . . . . . . . . . . . . . . . . . . . . 1 Robot Analysis 3 | . 3 . . . . . . . . . . . . . . . . . . . . Prototype ID Bank 3 | . . . . . 1 . . . 1 . . . . . 1 . . . . . . Open Door 1 | . . 1 . . . . . . . . . . . . . . . . . . . Level Access Points 1 | . . . . . . . . . . . . . . . . . . . . . 1 Branch Access Points 4 | . 1 . . . 1 . . . 1 . . . 1 . . . . . . . . Machine Index 1 | . . . . . 1 . . . . . . . . . . . . . . . . Terminal Index 1 | . . . . . . . . . . . . . . . . . . . . . 1 Alert Level 5 | . . . 1 . 4 . . . . . . . . . . . . . . . . Garrison Status 1 | . . . . . 1 . . . . . . . . . . . . . . . . Zone Layout 2 | . . . . . 1 . . . . . . . . . 1 . . . . . . Garrison Registry 2 | . . . . . . 1 . . . 1 . . . . . . . . . . . Security Stations 1 | . . . . . . . . . . . . . . . . 1 . . . . . Fabricator Hacks . | . . . . . . . . . . . . . . . . . . . . . . Repair Station Hacks 2 | . . . . . . . . . . . 2 . . . . . . . . . . Scan Component 1 | . . . . . . . . . . . 1 . . . . . . . . . . Repair 1 | . . . . . . . . . . . 1 . . . . . . . . . . Recycling Unit Hacks 1 | . . . . . . . . . . . . . 1 . . . . . . . . Retrieve Components 1 | . . . . . . . . . . . . . 1 . . . . . . . . Scanalyzer 13 | . . . 4 . 4 . 3 . . . . . 1 . . . 1 . . . . Retrieve Study 13 | . . . 4 . 4 . 3 . . . . . 1 . . . 1 . . . . Garrison Access Hacks 6 | . . . . . 1 . 1 . 1 . 1 . . . 1 . . 1 . . . Unlock Access 6 | . . . . . 1 . 1 . 1 . 1 . . . 1 . . 1 . . . Unauthorized Hacks 16 | . 2 . 1 . 4 . . . 1 . . . 1 2 3 . . 1 . . 1 Terminals 16 | . 2 . 1 . 4 . . . 1 . . . 1 2 3 . . 1 . . 1 Botnet 13 | . 2 . 1 . 3 . . . 1 . . . 1 1 2 . . 1 . . 1 Operators 2 | . . . . . 1 . . . . . . . . . 1 . . . . . . Sabotage 1 | . . . . . . . . . . . . . . 1 . . . . . . . Fabricators . | . . . . . . . . . . . . . . . . . . . . . . Repair Stations . | . . . . . . . . . . . . . . . . . . . . . . Recycling Units . | . . . . . . . . . . . . . . . . . . . . . . Scanalyzers . | . . . . . . . . . . . . . . . . . . . . . . Garrison Access . | . . . . . . . . . . . . . . . . . . . . . . Data Cores Recovered 1 | . . . . . . . . . . . . . . . . . 1 . . . . Used . | . . . . . . . . . . . . . . . . . . . . . . Hacking Detections 49 | . 4 . 2 . 8 1 1 2 4 1 3 . 7 . 2 2 4 1 . 2 5 Full Trace Events 1 | . . . . . . . . . . . . . . . . . . . . . 1 Feedback Events . | . . . . . . . . . . . . . . . . . . . . . . Feedback Blocked . | . . . . . . . . . . . . . . . . . . . . . . Robot Schematics Acquired . | . . . . . . . . . . . . . . . . . . . . . . Robots Built . | . . . . . . . . . . . . . . . . . . . . . . Authchips . | . . . . . . . . . . . . . . . . . . . . . . Time . | . . . . . . . . . . . . . . . . . . . . . . Total Robot Build Rating . | . . . . . . . . . . . . . . . . . . . . . . Part Schematics Acquired . | . . . . . . . . . . . . . . . . . . . . . . Parts Built . | . . . . . . . . . . . . . . . . . . . . . . Authchips . | . . . . . . . . . . . . . . . . . . . . . . Time . | . . . . . . . . . . . . . . . . . . . . . . Total Part Build Rating . | . . . . . . . . . . . . . . . . . . . . . . Part Studies Acquired 13 | . . . 4 . 4 . 3 . . . . . 1 . . . 1 . . . . Parts Repaired 1 | . . . . . . . . . . . 1 . . . . . . . . . . Time 22 | . . . . . . . . . . . 22 . . . . . . . . . . Parts Recycled . | . . . . . . . . . . . . . . . . . . . . . . Recycled Matter . | . . . . . . . . . . . . . . . . . . . . . . Retrieved Matter . | . . . . . . . . . . . . . . . . . . . . . . Retrieved Components . | . . . . . . . . . . . . . . . . . . . . . . Parts Scanalyzed . | . . . . . . . . . . . . . . . . . . . . . . Part Schematics Acquired . | . . . . . . . . . . . . . . . . . . . . . . Parts Damaged . | . . . . . . . . . . . . . . . . . . . . . . Bothacking | -11 -10 -10 -9 -9 -8 -8 -7 -7 -7 -7 -6 -6 -5 -5 -4 -4 -3 -2 -2 -1 -1 ------------ Run | Yrd Mat Min Mat Min Mat Gar Fac Gar Fac Gar Fac Gar Fac Ext Fac Gar Res Res Gar Acc Com Used RIF Installer 7 | . . . . . . 2 . 1 . 1 . 1 . . . 1 . . 1 . . Threat Obfuscator 1 | . . . . . . . . . . . . . . . . 1 . . . . . Signal Jammer 1 | . . . . . . . . 1 . . . . . . . . . . . . . Zone Cloak 1 | . . . . . . . . . . . . . . . . . . . 1 . . Patrol Navigation 1 | . . . . . . 1 . . . . . . . . . . . . . . . Alert ID Control 1 | . . . . . . . . . . . . 1 . . . . . . . . . Structural Interface 1 | . . . . . . . . . . 1 . . . . . . . . . . . Robots Hacked 11 | . . . . . . . . . . . . . 6 2 . . 2 . 1 . . Non-combat . | . . . . . . . . . . . . . . . . . . . . . . Combat 11 | . . . . . . . . . . . . . 6 2 . . 2 . 1 . . Robot Hacks Applied 12 | . . . . . . . . . . . . . 7 2 . . 2 . 1 . . spike_heat 1 | . . . . . . . . . . . . . 1 . . . . . . . . amplify_resonance 1 | . . . . . . . . . . . . . 1 . . . . . . . . go_dormant 1 | . . . . . . . . . . . . . 1 . . . . . . . . formatsys_high 8 | . . . . . . . . . . . . . 4 1 . . 2 . 1 . . formatsys_deep 1 | . . . . . . . . . . . . . . 1 . . . . . . . Relay Couplers Released 39 | . . . . . . 11 . . . 3 . 5 . . . 16 . . 4 . . Machine Destruction 39 | . . . . . . 11 . . . 3 . 5 . . . 16 . . 4 . . Attached 9 | . . . . . . . . . . . . . 3 2 . . 1 . 2 . 1 Fabnet Peak Effective % . | . . . . . . . . . . . . . . . . . . . . . . Robots Rewired 20 | . . . . . . 11 . . . 3 . . . 3 . 3 . . . . . Allies Hacked 2 | . . . . . . 1 . . . . . . . . . . 1 . . . . Hacks Repelled . | . . . . . . . . . . . . . . . . . . . . . . Allies | -11 -10 -10 -9 -9 -8 -8 -7 -7 -7 -7 -6 -6 -5 -5 -4 -4 -3 -2 -2 -1 -1 -------- Run | Yrd Mat Min Mat Min Mat Gar Fac Gar Fac Gar Fac Gar Fac Ext Fac Gar Res Res Gar Acc Com Total Allies 42 | . . 3 . 2 . 11 . . . 3 . . 4 11 . 5 2 . 1 . . Largest Group 8 | . . 3 1 2 . 8 . . . 3 . . 2 5 4 4 2 . 1 . . Highest-Rated Group 187 | . . 40 16 45 . 120 . . . 82 . . 96 107 48 187 94 . 148 . . Highest-Rated Ally 148 | . . 16 16 31 . 40 . . . 31 . . 49 49 12 95 47 . 148 . . Total Orders . | . . . . . . . . . . . . . . . . . . . . . . Ally Attacks 269 | . . 9 6 9 . 27 . . . 24 . . 5 101 2 54 26 . 6 . . Total Damage 4679 | . . 74 101 164 . 673 . . . 379 . . 104 1208 . 1212 608 . 156 . . Kills 39 | . . 3 3 4 . 10 . . . 1 . . 2 7 . 5 3 . 1 . . Allies Corrupted 1 | . . . . . . . . . . . . . 1 . . . . . . . . Allies Melted 1 | . . . . . . 1 . . . . . . . . . . . . . . . Intel | -11 -10 -10 -9 -9 -8 -8 -7 -7 -7 -7 -6 -6 -5 -5 -4 -4 -3 -2 -2 -1 -1 ------- Run | Yrd Mat Min Mat Min Mat Gar Fac Gar Fac Gar Fac Gar Fac Ext Fac Gar Res Res Gar Acc Com Active Infowar (turns) 14889 | 21 742 986 381 463 1157 . 515 1670 951 1042 472 706 1648 1054 169 1397 433 385 648 . 49 Optics 3800 | . . . . . . . . . . . . . 1127 1054 169 1397 53 . . . . Sensors 3536 | . . . . . 420 . 32 . . . . . 1557 1054 169 260 . . . . 44 Seismic 8059 | 21 742 986 381 463 737 . 483 1670 951 1042 472 111 . . . . . . . . . Jamming 2663 | . . . . . . . . . . . 450 706 91 . . . 380 385 648 . 3 ECM 3 | . . . . . . . . . . . . . 1 . . . . . . . 2 Robot Analysis Total 3 | . 3 . . . . . . . . . . . . . . . . . . . . Derelict Logs Recovered 3 | . . 1 . 2 . . . . . . . . . . . . . . . . . Drone Launches . | . . . . . . . . . . . . . . . . . . . . . . Drone Recoveries . | . . . . . . . . . . . . . . . . . . . . . . Exploration | -11 -10 -10 -9 -9 -8 -8 -7 -7 -7 -7 -6 -6 -5 -5 -4 -4 -3 -2 -2 -1 -1 ------------- Run | Yrd Mat Min Mat Min Mat Gar Fac Gar Fac Gar Fac Gar Fac Ext Fac Gar Res Res Gar Acc Com Turns Passed 18793 | 111 742 996 766 1279 1194 1539 515 1670 951 1042 472 706 1680 1054 169 1397 872 385 679 88 486 Spaces Moved 9847 | 54 355 553 296 671 514 702 273 861 505 502 261 306 737 584 94 694 458 204 336 179 708 Core 11 | 8 . . . . . . . . . . . . . . . . . . 3 . . Treads 8410 | 46 355 553 296 671 514 702 273 861 505 502 261 306 659 166 94 694 458 204 290 . . Legs 496 | . . . . . . . . . . . . . 78 418 . . . . . . . Wheels . | . . . . . . . . . . . . . . . . . . . . . . Hover 526 | . . . . . . . . . . . . . . . . . . . . 24 502 Flight 404 | . . . . . . . . . . . . . . . . . . . 43 155 206 Fastest Speed 40 | 50 160 160 160 160 160 160 160 160 160 160 160 160 160 120 162 160 157 154 40 40 40 Average Speed 149 | 154 160 160 160 160 160 160 160 160 160 160 160 160 172 139 162 163 159 161 138 41 48 Slowest Speed 330 | 160 160 160 160 160 160 160 160 160 160 160 160 160 245 330 162 229 208 226 232 50 80 Overloaded Moves . | . . . . . . . . . . . . . . . . . . . . . . Propulsion Burnouts . | . . . . . . . . . . . . . . . . . . . . . . Robots Hopped 6 | . . . . . . . . . . . . . . . . . . . . 5 1 Potential Cave-ins . | . . . . . . . . . . . . . . . . . . . . . . Cave-ins Triggered . | . . . . . . . . . . . . . . . . . . . . . . Exploration Rate (%) 43 | 5 76 99 37 96 57 74 9 71 15 61 10 48 25 69 4 92 16 6 39 8 32 Regions Visited 21 Branch Regions 4 Pre-discovered Areas . | . . . . . . . . . . . . . . . . . . . . . . Known Exits Taken 11 | . 1 . . . 1 . 1 . 1 . 1 . 1 1 1 . 1 1 . 1 . Unknown Exits Taken 4 | 1 . 1 1 1 . . . . . . . . . . . . . . . . . Scrap Searched 3 | . . 1 . 2 . . . . . . . . . . . . . . . . . Spaces Dug 93 | . 1 3 8 . 2 27 7 6 11 . . . 13 . 2 1 2 . 8 . 2 Terrain Destroyed 304 | . 14 3 39 2 51 47 7 11 15 10 1 5 28 14 2 22 4 . 25 . 4 Melee 55 | . . 3 1 . 2 9 7 6 11 . . . 12 . 1 1 2 . . . . Projectile 82 | . . . 2 2 1 3 . 5 4 5 1 5 7 11 1 21 1 . 9 . 4 AOE 166 | . 14 . 36 . 48 35 . . . 5 . . 9 3 . . . . 16 . . Terrain Rammed . | . . . . . . . . . . . . . . . . . . . . . . Walls Destroyed . | . . . . . . . . . . . . . . . . . . . . . . Machines Disabled . | . . . . . . . . . . . . . . . . . . . . . . Actions | -11 -10 -10 -9 -9 -8 -8 -7 -7 -7 -7 -6 -6 -5 -5 -4 -4 -3 -2 -2 -1 -1 --------- Run | Yrd Mat Min Mat Min Mat Gar Fac Gar Fac Gar Fac Gar Fac Ext Fac Gar Res Res Gar Acc Com Total 12430 | 71 487 633 536 822 766 921 317 1035 580 645 301 421 977 732 104 835 527 241 470 183 826 Wait 1025 | 1 83 35 177 94 112 53 9 52 25 70 25 52 70 40 2 15 2 10 52 . 46 Move 9818 | 53 354 552 295 670 514 701 273 860 505 501 260 305 736 583 94 693 457 203 335 168 706 Hop 6 | . . . . . . . . . . . . . . . . . . . . 5 1 Pick Up 146 | 5 9 6 11 3 14 5 5 14 4 3 1 5 17 16 . 14 3 1 5 1 4 Fast Attach 85 | 7 1 . . . 2 2 . 3 . . 2 . 10 6 . 6 5 7 2 2 30 Attach 80 | . . 1 2 2 6 2 3 3 . 1 2 6 13 9 2 3 6 4 9 1 5 Detach 14 | . 1 . . . . 1 . . . . 1 . . 1 . . . 3 3 1 3 Swap 217 | . 4 9 8 7 28 27 3 12 6 15 2 5 31 12 3 20 19 . 5 . 1 Drop 115 | . 6 6 1 4 17 8 4 18 5 2 . . 7 4 . 15 2 4 4 1 7 Fire 699 | 3 29 9 32 35 62 60 10 61 19 39 6 45 71 52 1 63 27 8 44 4 19 Melee 131 | . . 6 10 7 9 28 9 8 16 2 . . 15 . 2 3 5 . 11 . . Ram 1 | . . . . . . . . . . . . . . . . . . . . . 1 Kick 4 | . . . . . . . . . . . . . . 4 . . . . . . . Crush 19 | 2 . 9 . . 2 . 1 . . . 2 . 2 . . . . 1 . . . Escape Stasis 14 | . . . . . . 1 . . . . . . 5 5 . . . . . . 3 Rewire 1 | . . . . . . . . . . . . . . . . . 1 . . . . Trap 4 | . . . . . . . . 4 . . . . . . . . . . . . . Miscellaneous 51 | . . . . . . 33 . . . 12 . 3 . . . 3 . . . . . Route ------- -11/Scrapyard -10/Materials (discovered 3 exits: *Mat x2 / *Min) -10/Mines (discovered 3 exits: *Mat x2 / [*Sub]) -9/Materials -9/Mines (discovered 2 exits: *Mat / [*Exi]) -8/Materials (discovered 3 exits: *Fac x2 / Gar) -8/Garrison (discovered 3 exits: *Fac x3) -7/Factory (discovered 2 exits: *Sto / Gar) -7/Garrison (discovered 2 exits: *Fac x2) -7/Factory (discovered 6 exits: *Fac / Sto x2 / Low x2 / Gar) -7/Garrison (discovered 3 exits: *Fac x3) -6/Factory -6/Garrison -5/Factory (discovered 5 exits: *Fac / Upp x2 / *Ext x2) -5/Extension (discovered 3 exits: *Fac x2 / *Cet) -4/Factory (discovered 2 exits: *Res / Gar) -4/Garrison (discovered 3 exits: *Res x2 / *Fac) -3/Research -2/Research -2/Garrison -1/Access -1/Command (discovered 2 exits: Sur x2) History --------- Turn | Location | Event 13 | -11/Scrapyard | Discovered new exit (range 14) 112 | -11/Scrapyard | Entered Materials 318 | -10/Materials | Build established: Mutant 436 | -10/Materials | Discovered new exit (range 16) 540 | -10/Materials | Discovered new exit (range 15) 709 | -10/Materials | Discovered new exit (range 8) 814 | -10/Materials | Identified exit to Mines 854 | -10/Materials | Entered Mines 882 | -10/Mines | Discovered new exit (range 9) 938 | -10/Mines | Discovered new exit (range 15) 975 | -10/Mines | Joined a pair of Derelicts in attacking an 0b10 outpost 1060 | -10/Mines | Learned 2 Materials zone layouts 1159 | -10/Mines | Assisted by bots powering up and referring to "LRC-V3" 1285 | -10/Mines | Discovered new exit (range 13) 1659 | -10/Mines | Met a Derelict who couldn't figure out how to use a Trap Extractor 1850 | -10/Mines | Entered Materials 1850 | -9/Materials | Accompanied by 1 ally 1850 | -9/Materials | Evolved 2 slots: Propulsion x1, Utility x1 2106 | -9/Materials | Destroyed 7 combat bots 2429 | -9/Materials | Discovered new exit (range 13) 2616 | -9/Materials | Entered Mines 2682 | -9/Mines | Received a Rocket Launcher from a helpful Derelict 2752 | -9/Mines | Deemed a non-threat by the Exiles lab entrance 2752 | -9/Mines | Discovered new exit (range 5) 2833 | -9/Mines | Learned location of 2 exits from Materials 2957 | -9/Mines | Assembled infested the area 3246 | -9/Mines | Discovered new exit (range 12) 3658 | -9/Mines | Learned 4 Materials zone layouts 3895 | -9/Mines | Entered Materials 3895 | -8/Materials | Evolved 2 slots: Propulsion x1, Utility x1 3896 | -8/Materials | Identified exit to Factory 4195 | -8/Materials | Build established: Scavenger-Mutant 4491 | -8/Materials | Central database locked down 5089 | -8/Materials | Identified exit to Garrison 5089 | -8/Materials | Entered Garrison 5156 | -8/Garrison | Phase Generator disabled 5208 | -8/Garrison | Build established: Mutant 5355 | -8/Garrison | Triggered checkpoint 5388 | -8/Garrison | Garrison Relay disabled 5435 | -8/Garrison | Triggered checkpoint 5478 | -8/Garrison | Lost 6 allies 5489 | -8/Garrison | Garrison Relay disabled 5511 | -8/Garrison | P-60 Hacker assimilated allied Bruiser 3h 5758 | -8/Garrison | Installed Relay Interface Framework 5979 | -8/Garrison | Triggered checkpoint 6003 | -8/Garrison | Build established: Scavenger-Mutant 6041 | -8/Garrison | Discovered exit to Factory (range 15) 6133 | -8/Garrison | Triggered checkpoint 6246 | -8/Garrison | Garrison Relay disabled 6468 | -8/Garrison | Expanded RIF knowledge: Patrol Navigation 6541 | -8/Garrison | Destroyed 10 combat bots 6569 | -8/Garrison | Discovered exit to Factory (range 13) 6607 | -8/Garrison | Discovered exit to Factory (range 14) 6607 | -8/Garrison | Discovered exit to Factory (range 52) 6607 | -8/Garrison | Discovered exit to Factory (range 89) 6628 | -8/Garrison | Entered Factory 6628 | -7/Factory | Evolved 2 slots: Utility x1, Weapon x1 7109 | -7/Factory | Discovered new exit (range 15) 7143 | -7/Factory | Identified exit to Garrison 7143 | -7/Factory | Entered Garrison 7247 | -7/Garrison | Triggered checkpoint 7451 | -7/Garrison | Triggered checkpoint 7499 | -7/Garrison | Triggered checkpoint 7544 | -7/Garrison | Build established: Scientist-Gunner 7864 | -7/Garrison | Triggered checkpoint 7906 | -7/Garrison | Discovered new exit (range 14) 7959 | -7/Garrison | Expanded RIF knowledge: Signal Jamming 8157 | -7/Garrison | Triggered checkpoint 8236 | -7/Garrison | Discovered new exit (range 14) 8340 | -7/Garrison | Build established: Scavenger-Gunner 8714 | -7/Garrison | Build established: Scavenger-Tank 8813 | -7/Garrison | Entered Factory 8853 | -7/Factory | Identified exit to Storage 8853 | -7/Factory | Identified exit to Lower Caves 9412 | -7/Factory | Discovered new exit (range 16) 9764 | -7/Factory | Identified exit to Garrison 9764 | -7/Factory | Entered Garrison 9858 | -7/Garrison | Triggered checkpoint 9988 | -7/Garrison | Garrison Relay disabled 10278 | -7/Garrison | Destroyed 9 combat bots 10349 | -7/Garrison | Discovered new exit (range 10) 10384 | -7/Garrison | Triggered checkpoint 10598 | -7/Garrison | Triggered checkpoint 10626 | -7/Garrison | Discovered new exit (range 33) 10626 | -7/Garrison | Discovered new exit (range 19) 10626 | -7/Garrison | Discovered new exit (range 55) 10680 | -7/Garrison | Triggered checkpoint 10782 | -7/Garrison | Expanded RIF knowledge: Structural Interface 10806 | -7/Garrison | Entered Factory 10806 | -6/Factory | Evolved 2 slots: Utility x2 11056 | -6/Factory | Repaired Transmission Jammer 11229 | -6/Factory | Build established: Scavenger-Gunner 11267 | -6/Factory | Identified exit to Garrison 11278 | -6/Factory | Entered Garrison 11332 | -6/Garrison | Triggered checkpoint 11458 | -6/Garrison | Lost 3 parts (1n2u) 11519 | -6/Garrison | Garrison Relay disabled 11572 | -6/Garrison | Spotted B-75 Beast 11639 | -6/Garrison | Destroyed B-75 Beast 11762 | -6/Garrison | Triggered checkpoint 11825 | -6/Garrison | Build established: Bothacker-Gunner 11934 | -6/Garrison | Expanded RIF knowledge: Alert ID Control 11979 | -6/Garrison | Discovered new exit (range 2) 11984 | -6/Garrison | Entered Factory 11984 | -5/Factory | Evolved 2 slots: Propulsion x1, Utility x1 12106 | -5/Factory | Lost 3 parts (1n2u) 12466 | -5/Factory | Discovered new exit (range 6) 12474 | -5/Factory | Identified exit to Factory 12805 | -5/Factory | Identified exit to Upper Caves 12805 | -5/Factory | Identified exit to Extension 13130 | -5/Factory | Central database locked down 13522 | -5/Factory | System corruption reached 10% 13664 | -5/Factory | Entered Extension 13703 | -5/Extension | Energy Cycler disabled 13703 | -5/Extension | Rescued a captive Derelict 13704 | -5/Extension | Rescued a captive Derelict 13704 | -5/Extension | Rescued a captive Derelict 13705 | -5/Extension | Rescued a captive Derelict 13705 | -5/Extension | Rescued a captive Derelict 13706 | -5/Extension | Rescued a captive Derelict 13707 | -5/Extension | Rescued a captive Derelict 13708 | -5/Extension | Rescued a captive Derelict 13727 | -5/Extension | Rescued a captive Derelict 13920 | -5/Extension | Build established: Scavenger-Skirmisher 13968 | -5/Extension | Spotted B-75 Beast 14267 | -5/Extension | Spotted B-75 Beast 14279 | -5/Extension | Allies destroyed B-75 Beast 14312 | -5/Extension | Lost 3 allies 14330 | -5/Extension | Destroyed B-75 Beast 14339 | -5/Extension | Disrupted transfer network 14387 | -5/Extension | Core integrity fell below 50% 14390 | -5/Extension | Discovered exit to Factory (range 15) 14414 | -5/Extension | Lost 9 parts (1p6n1u1w) 14421 | -5/Extension | Assimilated ARC 6a with formatsys_deep 14484 | -5/Extension | Extracted ID and sensor layout for unrecognized location from A7's data core 14643 | -5/Extension | Discovered new exit (range 21) 14645 | -5/Extension | Discovered exit to Factory (range 20) 14708 | -5/Extension | Identified exit to Cetus 14718 | -5/Extension | Entered Factory 14718 | -4/Factory | Accompanied by 4 allies 14718 | -4/Factory | Evolved 2 slots: Utility x1, Weapon x1 14746 | -4/Factory | Discovered new exit (range 10) 14759 | -4/Factory | Identified exit to Research 14885 | -4/Factory | Identified exit to Garrison 14887 | -4/Factory | Entered Garrison 14887 | -4/Garrison | Accompanied by 4 allies 14939 | -4/Garrison | Triggered checkpoint 14993 | -4/Garrison | Lost 3 allies 14997 | -4/Garrison | Garrison Relay disabled 15008 | -4/Garrison | Found embedded Infiltrators 15065 | -4/Garrison | Spotted B-86 Titan 15083 | -4/Garrison | Triggered checkpoint 15123 | -4/Garrison | Lost 3 allies 15164 | -4/Garrison | Destroyed B-86 Titan 15466 | -4/Garrison | Build established: Scavenger-Gunner 15548 | -4/Garrison | Lost 3 parts (2n1u) 15567 | -4/Garrison | Triggered checkpoint 15653 | -4/Garrison | Triggered checkpoint 15713 | -4/Garrison | Expanded RIF knowledge: Threat Obfuscation 15748 | -4/Garrison | Discovered exit to Research (range 5) 15785 | -4/Garrison | Triggered checkpoint 15825 | -4/Garrison | Discovered new exit (range 6) 15832 | -4/Garrison | Identified exit to Factory 15870 | -4/Garrison | Build established: Scavenger-Tank 15891 | -4/Garrison | Triggered checkpoint 15913 | -4/Garrison | Garrison Relay disabled 15926 | -4/Garrison | Garrison Relay disabled 15975 | -4/Garrison | Learned Research security intel 16023 | -4/Garrison | Triggered checkpoint 16096 | -4/Garrison | Discovered exit to Research (range 21) 16133 | -4/Garrison | Triggered checkpoint 16223 | -4/Garrison | Garrison Relay disabled 16284 | -4/Garrison | Entered Research 16284 | -3/Research | Evolved 2 slots: Power x1, Propulsion x1 16347 | -3/Research | System corruption reached 10% 16918 | -3/Research | Discovered new exit (range 10) 16991 | -3/Research | Lost 3 parts (2n1w) 16995 | -3/Research | Identified exit to Research 17102 | -3/Research | Spotted B-86 Titan 17156 | -3/Research | Entered another Research area 17156 | -2/Research | Evolved 2 slots: Utility x1, Weapon x1 17380 | -2/Research | Found Fusion Bomb Launcher 17530 | -2/Research | Identified exit to Garrison 17541 | -2/Research | Entered Garrison 17619 | -2/Garrison | Triggered checkpoint 17793 | -2/Garrison | Triggered checkpoint 17826 | -2/Garrison | Garrison Relay disabled 17884 | -2/Garrison | Expanded RIF knowledge: Zone Cloak 18153 | -2/Garrison | Lost 9 parts (1p3n2u3w) 18155 | -2/Garrison | Spotted B-90 Cyclops 18159 | -2/Garrison | Triggered checkpoint 18166 | -2/Garrison | Assimilated Cyclops 9a with formatsys_high 18172 | -2/Garrison | Triggered checkpoint 18178 | -2/Garrison | Triggered checkpoint 18205 | -2/Garrison | Destroyed 8 combat bots 18216 | -2/Garrison | Discovered new exit (range 10) 18217 | -2/Garrison | Triggered checkpoint 18219 | -2/Garrison | Identified exit to Access 18220 | -2/Garrison | Entered Access 18220 | -1/Access | Evolved 2 slots: Propulsion x2 18228 | -1/Access | Lost 6 parts (1p1n2u2w) 18280 | -1/Access | Found Quantum Capacitor 18304 | -1/Access | Spotted B-99 Colossus 18305 | -1/Access | Spotted B-99 Colossus 18307 | -1/Access | Discovered new exit (range 4) 18308 | -1/Access | Identified exit to Command 18308 | -1/Access | Entered Command 18452 | -1/Command | Spotted B-99 Colossus 18473 | -1/Command | Build established: Mutant 18572 | -1/Command | Spotted B-99 Colossus 18574 | -1/Command | Lost 3 parts (3u) 18750 | -1/Command | Identified exit to Surface 18784 | -1/Command | Spotted Alpha 7 18784 | -1/Command | Spotted Striker 18784 | -1/Command | Spotted Executioner 18784 | -1/Command | Spotted Executioner 18784 | -1/Command | Spotted Alpha 7 18784 | -1/Command | Spotted Striker 18784 | -1/Command | Spotted Executioner 18784 | -1/Command | Spotted Executioner 18785 | -1/Command | Spotted B-99 Colossus 18786 | -1/Command | Spotted B-99 Colossus 18789 | -1/Command | Core integrity fell below 50% 18793 | -1/Command | Core integrity fell below 20% 18794 | -1/Command | Destroyed by B-99 Colossus with Multirail Last Messages --------------- 18790_ Slug penetrates Wall. 18791_ Penetrated by Slug. 18791_ Slug penetrates Door. 18791_ Imp. Gyrokinetic Inverter destroyed. 18791_ Slug penetrates Wall. 18791_ Field strength at 42. 18791_ Penetrated by Slug. 18791_ Slug penetrates Wall. 18791_ Slug penetrates Door. 18792_ Field strength at 23. 18792_ P-80 Master resets Alpha 7, system corruption cleaned. 18793_ Field strength at 14. 18793_ Knocked back. 18793_ Triggered Stasis Trap. 18793_ A bubble of rippling energy engulfs the area. 18793_ Field strength at 88. 18793_ Field strength at 76. 18794_ Field strength at 5. 18794_ Knocked back. 18794_ Penetrated by Slug. Map ----- +----------------------------------------------------+ | ???????????????????????? ??######??###### #? | | ???????????????????????# ?? ! +? | | ???????????????????????# ?? ? #? | | ???????????????????????#] ?? +? | | ???????????????????????# """" """" "" #? | | ???????????????????????# """" """" """" #? | | ???????????????????????# """" """" """" #? | | ???????????????????????# "" " """" "" #? | | ???????????????????????# #? | | ???????????????????????# #? | | ??????????????#######??# ## | | ????????????? ??# | | ????????????? ?# | | ??????????????? ?+ | | ????????????????? # | | ???????????????????? # ===;######+############# | | ?????????#########????#" !%*##????# ???????????# | | ?????????# #????##+;//;##???# ??????????## | | ?????????# #????# p %;#???# ?????????# | | ?????????# #???## ^%##???# ?????????# | | # ???????# #???# 7 =c 7 #???# ????????# | | # ??????# #???##K %^^K##???# ????????# * | | # ####### #???#% E #???# "???????# | | # #???## ^% E##???? ??????## | | # #???# % c #????* ?????# | | + #???##E^@ E##????######??#### | | ]! # #???# ^%^ #????????????# | | ]! # #??#;; BB##????????????# | | !! # #?# BB BB #?????###### | | ? # #?# BB #????# | | ?? # #?# ^ #????# #######+## | | ???? # #?# """""" #????# ## | | #####/# #?# ^?????? #????# ## | | # # = #?# ?????? #????# ## | | + #####+###?# ???